bitfinex-derivatives/quotes_SOLF0:USTF0_20251122
["timestamp","ask_amount","ask_price","bid_price","bid_amount"]
[1763813322368,3.08,125.93,125.88,16.62]
[1763813322565,3.08,125.93,125.89,1.41]
[1763813323765,3.08,125.92,125.85,1.41]
[1763813324068,3.08,125.89,125.85,1.41]
[1763813324765,3.08,125.89,125.84,2.79237864]
[1763813324968,3.08,125.88,125.84,2.79237864]
[1763813325162,3.13888909,125.87,125.81,1.41]
[1763813325362,3.13888909,125.87,125.76,125.7212]
[1763813325363,3.13888909,125.87,125.78,1.41]
[1763813325663,114.63289409,125.88,125.78,8.5703]
[1763813325664,0.05322536,125.84,125.78,8.5703]
[1763813325866,3.13322536,125.84,125.79,1.41]
[1763813326274,3.13322536,125.84,125.79,8.5698]
[1763813327363,3.13322536,125.84,125.8,1.41]
[1763813327562,3.13322536,125.84,125.77,8.5709]
[1763813327762,3.13322536,125.84,125.77,1.41]
[1763813328260,3.08,125.83,125.77,1.41]
[1763813328462,3.08,125.8,125.76,18.05]
[1763813329061,3.08,125.8,125.76,1.41]
[1763813329265,3.08,125.8,125.74,16.64]
[1763813329464,0.05109649,125.78,125.75,1.41]
[1763813329667,3.13109649,125.78,125.75,1.41]
[1763813330771,3.08,125.84,125.77,1.41]
[1763813331371,3.08,125.84,125.8,1.41]
[1763813331767,3.13397234,125.83,125.81,0.06095044]
[1763813331963,3.13788181,125.83,125.81,0.06095044]
[1763813332364,3.13788181,125.83,125.77,8.5709]
[1763813332763,3.13788181,125.83,125.77,1.41]
[1763813333269,0.05788181,125.83,125.78,1.41]
[1763813333473,0.05516939,125.82,125.78,1.41]
[1763813334072,0.05516939,125.82,125.79,1.41]
[1763813334272,0.05516939,125.82,125.79,8.5698]
[1763813334463,0.05516939,125.82,125.8,1.41]
[1763813335368,3.13516939,125.82,125.78,16.66]
[1763813335674,3.13516939,125.82,125.79,1.41]
[1763813335973,0.05516939,125.82,125.79,1.41]
[1763813337876,0.05516939,125.82,125.79,8.5698]
[1763813338078,3.13516939,125.82,125.79,8.5698]
[1763813338577,3.13516939,125.82,125.78,16.66]
[1763813340175,10.29366939,125.82,125.78,16.66]
[1763813340474,3.08,125.81,125.75,7.162]
[1763813340675,0.05233132,125.79,125.76,1.41]
[1763813340873,3.13233132,125.79,125.76,1.41]
[1763813342174,0.05233132,125.79,125.76,117.74179409]
[1763813342370,0.05233132,125.79,125.77,1.41]
[1763813342570,0.05233132,125.79,125.78,16.68]
[1763813343168,0.05233132,125.79,125.78,18.09]
[1763813343677,0.05233132,125.79,125.78,16.68]
[1763813345572,3.31233132,125.79,125.78,16.68]
[1763813345774,3.31233132,125.79,125.72,2.79356028]
[1763813345978,3.26,125.78,125.72,1.41]
[1763813346488,0.05858974,125.76,125.72,8.5739]
[1763813346679,0.05858974,125.76,125.73,1.41]
[1763813346974,3.31858974,125.76,125.72,1.41]
[1763813347177,3.31858974,125.76,125.69,1.38380786]
[1763813347382,3.31858974,125.76,125.68,1.41]
[1763813347582,3.31639668,125.73,125.68,1.41]
[1763813348684,3.31639668,125.73,125.67,16.7]
[1763813348877,3.26,125.72,125.67,16.7]
[1763813349190,3.26,125.72,125.67,18.11]
[1763813349378,3.26,125.71,125.67,16.7]
[1763813349575,0.05422414,125.7,125.67,18.11]
[1763813349780,3.31422414,125.7,125.67,18.11]
[1763813350382,3.31422414,125.7,125.67,16.7]
[1763813350694,3.31422414,125.7,125.67,18.11]
[1763813351185,0.05422414,125.7,125.69,1.41]
[1763813351376,3.26,125.79,125.72,1.41]
[1763813352378,0.05455515,125.77,125.74,1.46345771]
[1763813352687,3.26,125.85,125.77,1.41]
[1763813353188,3.26,125.85,125.78,7.1604]
[1763813353485,3.26,125.85,125.77,1.41]
[1763813353672,3.31997526,125.83,125.8,0.05035547]
[1763813355483,3.31997526,125.83,125.8,1.46035547]
[1763813355984,0.05997526,125.83,125.8,1.46035547]
[1763813356588,3.31997526,125.83,125.8,0.05035547]
[1763813358385,0.05997526,125.83,125.8,1.46035547]
[1763813359591,0.05997526,125.83,125.8,8.61965547]
[1763813359890,0.05997526,125.83,125.81,1.41]
[1763813360886,3.31997526,125.83,125.8,1.46035547]
[1763813363399,3.31997526,125.83,125.8,0.05035547]
[1763813366403,9.27074709,125.82,125.8,0.05035547]
[1763813366702,3.26,125.82,125.8,0.05035547]
[1763813368397,3.26,125.8,125.74,25.2725]
[1763813368602,3.26,125.78,125.74,25.2725]
[1763813368995,3.26,125.78,125.75,1.41]
[1763813369197,3.31004803,125.78,125.75,1.46799072]
[1763813370300,3.26,125.76,125.7,1.41]
[1763813370488,3.26,125.78,125.7,112.8692]
[1763813370801,9.28130838,125.77,125.73,7.1633]
[1763813370988,3.26,125.77,125.73,8.5733]
[1763813371395,3.31076086,125.76,125.73,8.5733]
[1763813372901,3.31076086,125.76,125.7,112.8692]
[1763813373098,3.31076086,125.76,125.72,1.41]
[1763813374401,3.31076086,125.76,125.69,1.41]
[1763813374700,3.31076086,125.76,125.68,18.11]
[1763813374906,0.05517775,125.73,125.68,18.11]
[1763813375204,3.26,125.72,125.69,1.41]
[1763813375595,3.20517775,125.73,125.69,1.41]
[1763813376298,3.20517775,125.73,125.7,7.1649]
[1763813376599,0.05517775,125.73,125.71,1.41]
[1763813377102,0.05517775,125.73,125.72,1.41]
[1763813377897,3.28,125.8,125.74,7.1626]
[1763813378093,3.28,125.78,125.7,1.41]
[1763813378293,3.28,125.77,125.7,8.5749]
[1763813378508,3.28,125.76,125.69,16.72]
[1763813378804,3.28,125.73,125.71,0.05228589]
[1763813379398,7.2228751,125.74,125.64,18.15]
[1763813379399,3.28,125.72,125.64,18.15]
[1763813379598,3.28,125.72,125.64,25.3182]
[1763813380397,3.33050236,125.69,125.64,18.15]
[1763813381406,0.05050236,125.69,125.66,1.46]
[1763813381606,3.33050236,125.69,125.66,1.46]
[1763813381804,0.05050236,125.69,125.66,8.6273]
[1763813382195,3.33050236,125.69,125.66,8.6273]
[1763813382397,3.33050236,125.69,125.64,18.2]
[1763813384111,3.33050236,125.69,125.64,16.74]
[1763813385206,3.28,125.68,125.64,16.74]
[1763813387107,3.28,125.67,125.64,16.74]
[1763813387615,3.28,125.67,125.61,1.46]
[1763813387914,0.05743156,125.65,125.61,1.46]
[1763813388817,3.33743156,125.65,125.61,1.46]
[1763813389204,0.05743156,125.65,125.61,1.46]
[1763813390514,3.33743156,125.65,125.61,1.46]
[1763813391410,0.05743156,125.65,125.61,1.46]
[1763813392814,3.33743156,125.65,125.61,1.46]
[1763813393203,0.05743156,125.65,125.61,1.46]
[1763813401524,3.33743156,125.65,125.6,18.2]
[1763813401726,3.33743156,125.65,125.61,1.46]
[1763813402523,3.33743156,125.65,125.6,16.74]
[1763813403224,3.33743156,125.65,125.6,18.2]
[1763813403421,3.33743156,125.65,125.6,16.74]
[1763813403612,3.33743156,125.65,125.57,1.46]
[1763813403818,3.28,125.65,125.57,1.46]
[1763813404026,3.28,125.61,125.57,1.46]
[1763813404225,3.33004078,125.62,125.57,1.46]
[1763813405226,3.33004078,125.62,125.54,18.2]
[1763813405428,0.05872837,125.59,125.55,1.46]
[1763813405628,3.26872837,125.59,125.55,1.46]
[1763813405831,0.05872837,125.59,125.55,1.46]
[1763813406222,0.05872837,125.59,125.56,1.47]
[1763813406425,3.21,125.68,125.59,1.41]
[1763813407528,3.21,125.68,125.62,1.47029511]
[1763813407529,0.05903235,125.65,125.62,1.47029511]
[1763813407722,3.26903235,125.65,125.62,1.47029511]
[1763813407927,3.26903235,125.65,125.62,0.06029511]
[1763813408629,3.21,125.64,125.54,18.15]
[1763813409222,3.21,125.64,125.55,1.41]
[1763813409530,3.21,125.64,125.54,16.74]
[1763813409723,3.21,125.59,125.54,18.15]
[1763813409926,3.21,125.59,125.54,16.74]
[1763813410927,3.21,125.59,125.55,1.41]
[1763813411227,0.06101989,125.6,125.54,16.74]
[1763813411228,3.27101989,125.6,125.54,16.74]
[1763813411929,0.06101989,125.6,125.55,1.41]
[1763813413125,3.27101989,125.6,125.55,1.41]
[1763813413325,0.06101989,125.6,125.55,1.41]
[1763813420139,0.06101989,125.6,125.57,1.41]
[1763813423950,3.27101989,125.6,125.56,7.41]
[1763813424149,3.27101989,125.6,125.57,1.41]
[1763813424150,0.06101989,125.6,125.57,1.41]
[1763813425144,3.21,125.67,125.58,1.35]
[1763813425351,6.06045219,125.66,125.58,1.35]
[1763813425548,3.21,125.67,125.58,1.35]
[1763813425750,9.27386597,125.66,125.58,1.35]
[1763813425949,3.21,125.66,125.58,1.35]
[1763813426150,0.05938438,125.63,125.61,1.40853416]
[1763813427743,0.05938438,125.63,125.61,0.05853416]
[1763813427948,3.21,125.62,125.58,1.35]
[1763813428143,3.21,125.62,125.54,1.35]
[1763813429044,0.0512424,125.59,125.54,1.35]
[1763813430751,3.21,125.68,125.59,1.3]
[1763813431950,0.05083953,125.65,125.62,1.35529652]
[1763813433243,3.21,125.71,125.62,1.35529652]
[1763813433447,3.21,125.71,125.62,1.3]
[1763813433645,3.21,125.71,125.63,1.25]
[1763813434244,0.06035939,125.68,125.66,0.05963741]
[1763813434445,0.06035939,125.68,125.66,1.30963741]
[1763813434650,0.06035939,125.68,125.66,0.05963741]
[1763813434845,4.87035939,125.68,125.66,0.05963741]
[1763813435041,3.21,125.67,125.6,1.25]
[1763813435643,3.21,125.67,125.56,2.93]
[1763813435852,3.12,125.65,125.56,2.93]
[1763813436053,0.05600627,125.63,125.6,0.04935928]
[1763813436255,3.17600627,125.63,125.6,0.04935928]
[1763813437160,0.05600627,125.63,125.6,1.29935928]
[1763813438758,3.12600627,125.63,125.6,1.29935928]
[1763813439551,3.12600627,125.63,125.6,0.04935928]
[1763813445759,0.05600627,125.63,125.6,1.29935928]
[1763813451556,5.90787289,125.68,125.6,1.29935928]
[1763813451760,3.07,125.69,125.6,1.25]
[1763813452362,3.07,125.69,125.56,15.32407923]
[1763813452564,3.07,125.69,125.57,1.19]
[1763813452767,3.12381227,125.64,125.61,0.06106894]
[1763813453063,3.12381227,125.64,125.61,0.05156491]
[1763813453468,0.05381227,125.64,125.61,1.24156491]
[1763813454571,3.07,125.7,125.61,1.24156491]
[1763813454763,3.07,125.7,125.61,1.19]
[1763813455071,3.07,125.7,125.62,1.19]
[1763813455671,0.06002038,125.67,125.66,1.19]
[1763813457966,3.07,125.72,125.66,1.19]
[1763813458168,0.33510458,125.72,125.66,1.19]
[1763813458361,6.06062244,125.75,125.66,1.19]
[1763813458566,16.21834958,125.78,125.66,1.19]
[1763813458763,6.05837897,125.77,125.66,1.19]
[1763813458967,0.05198465,125.73,125.7,3.32975495]
[1763813459164,0.05198465,125.73,125.7,0.05688603]
[1763813460071,3.07,125.72,125.7,0.05688603]
[1763813460672,3.07,125.72,125.61,3.27]
[1763813461672,0.05296387,125.68,125.66,3.27]
[1763813461877,0.05296387,125.68,125.66,3.32821323]
[1763813463774,3.12296387,125.68,125.66,0.05821323]
[1763813464178,3.07,125.67,125.66,0.05821323]
[1763813464379,0.05296387,125.68,125.66,0.05821323]
[1763813464580,3.12296387,125.68,125.66,0.05821323]
[1763813467072,3.12296387,125.68,125.67,7.1669]
[1763813467274,0.05296387,125.68,125.67,7.1669]
[1763813467475,3.28,125.71,125.67,3.32]
[1763813467679,3.28,125.71,125.68,3.32]
[1763813468183,3.28,125.71,125.69,7.1654]
[1763813468478,3.33707,125.71,125.69,7.22236292]
[1763813469381,3.33707,125.71,125.69,0.05696292]
[1763813469577,3.33707,125.71,125.64,16.76]
[1763813470078,3.28,125.68,125.66,7.1674]
[1763813470680,3.33208943,125.68,125.66,7.22184727]
[1763813470883,0.05208943,125.68,125.67,7.1669]
[1763813471178,0.05208943,125.68,125.67,10.4869]
[1763813475978,3.28,125.74,125.7,3.32]
[1763813477084,0.05727816,125.73,125.71,0.0548415]
[1763813477689,0.05727816,125.73,125.71,10.5394415]
[1763813478589,0.05727816,125.73,125.71,7.2194415]
[1763813478792,3.33727816,125.73,125.71,0.0548415]
[1763813482199,0.05727816,125.73,125.71,10.5393415]
[1763813482388,0.05727816,125.73,125.72,3.32]
[1763813482691,3.28,125.76,125.73,10.4833]
[1763813482887,3.28,125.79,125.73,3.32]
[1763813483286,3.28,125.79,125.76,7.1616]
[1763813483686,3.33714422,125.79,125.76,10.5392143]
[1763813483995,0.05714422,125.79,125.77,7.1611]
[1763813484194,0.05714422,125.79,125.77,10.4811]
[1763813484784,3.33714422,125.79,125.76,0.0576143]
[1763813485995,3.28,125.77,125.76,0.0576143]
[1763813486396,3.28,125.78,125.76,0.0576143]
[1763813487898,10.49734422,125.79,125.76,0.0576143]
[1763813488497,3.28,125.78,125.76,0.0576143]
[1763813488690,0.05714422,125.79,125.76,0.0576143]
[1763813488889,0.05714422,125.79,125.76,3.3776143]
[1763813489094,3.33714422,125.79,125.76,3.3776143]
[1763813490189,3.33714422,125.79,125.76,10.5393143]
[1763813490600,0.05714422,125.79,125.76,10.5393143]
[1763813491398,3.33714422,125.79,125.76,0.0576143]
[1763813492699,3.33714422,125.79,125.76,3.3776143]
[1763813492890,0.05714422,125.79,125.76,3.3776143]
[1763813493090,3.33714422,125.79,125.76,3.3776143]
[1763813494099,3.33714422,125.79,125.76,10.5393143]
[1763813494493,0.05714422,125.79,125.77,3.32]
[1763813494897,0.05714422,125.79,125.77,10.4811]
[1763813495495,0.05714422,125.79,125.78,3.32]
[1763813496200,0.05714422,125.79,125.77,10.4511]
[1763813496591,0.05714422,125.79,125.78,3.29]
[1763813500904,3.16714422,125.79,125.78,16.74]
[1763813501105,0.05714422,125.79,125.78,16.74]
[1763813501603,0.05714422,125.79,125.78,19.95]
[1763813507411,0.05714422,125.79,125.78,3.21]
[1763813507708,0.05714422,125.79,125.78,19.93]
[1763813509205,0.05714422,125.79,125.78,16.72]
[1763813509510,0.05714422,125.79,125.78,19.93]
[1763813511308,0.05714422,125.79,125.77,7.1611]
[1763813511309,3.16714422,125.79,125.77,7.1611]
[1763813511508,3.16714422,125.79,125.78,16.72]
[1763813512908,0.05714422,125.79,125.78,16.72]
[1763813515611,3.16714422,125.79,125.76,0.0576143]
[1763813515814,3.16714422,125.79,125.76,16.7776143]
[1763813517012,3.11,125.78,125.76,0.0576143]
[1763813517413,3.11,125.77,125.76,0.0576143]
[1763813521112,7.21744422,125.79,125.76,0.0576143]
[1763813521113,3.16714422,125.79,125.76,0.0576143]
[1763813522027,10.32744422,125.79,125.76,0.0576143]
[1763813522213,3.11,125.78,125.76,0.0576143]
[1763813527129,10.2708,125.78,125.76,0.0576143]
[1763813527328,3.1,125.77,125.76,0.0576143]
[1763813529827,3.1,125.76,125.72,7.1635]
[1763813530124,3.1,125.75,125.71,19.88]
[1763813530329,3.1,125.74,125.71,27.0444]
[1763813530535,3.1,125.74,125.71,19.88]
[1763813530829,3.1,125.73,125.71,16.7]
[1763813531125,3.1,125.73,125.71,16.75889294]
[1763813534324,0.05653904,125.74,125.72,3.18]
[1763813536131,0.05653904,125.74,125.72,10.3438]
[1763813536526,0.05653904,125.74,125.73,3.18]
[1763813545827,3.15653904,125.74,125.72,7.1638]
[1763813546130,3.15653904,125.74,125.72,3.18]
[1763813547831,3.15653904,125.74,125.71,27.10339294]
[1763813548032,3.15653904,125.74,125.71,0.05889294]
[1763813548234,3.1,125.73,125.71,16.75889294]
[1763813549136,3.1,125.73,125.71,0.05889294]
[1763813550235,3.1,125.72,125.71,0.05889294]
[1763813553137,3.1,125.72,125.64,2.13565433]
[1763813553138,3.1,125.7,125.64,2.13565433]
[1763813553331,3.1,125.7,125.65,3.18]
[1763813553332,3.1,125.69,125.65,3.18]
[1763813553634,3.1,125.67,125.64,16.68]
[1763813554336,3.1604568,125.67,125.64,16.73886251]
[1763813555340,3.1604568,125.67,125.64,19.91886251]
[1763813556042,3.1604568,125.67,125.64,27.08736251]
[1763813557844,0.0604568,125.67,125.65,3.19]
[1763813558038,0.0604568,125.67,125.65,10.3579]
[1763813558438,3.3304568,125.67,125.65,3.19]
[1763813559337,3.3304568,125.67,125.64,19.92886251]
[1763813559535,0.0604568,125.67,125.65,3.19]
[1763813559942,3.3304568,125.67,125.65,3.19]
[1763813560234,3.3304568,125.67,125.64,27.09736251]
[1763813561842,3.3304568,125.67,125.64,19.92886251]
[1763813563743,3.27,125.65,125.6,3.19]
[1763813564736,3.3232582,125.64,125.61,3.24453443]
[1763813564935,3.3232582,125.64,125.61,3.24416923]
[1763813565740,0.0532582,125.64,125.63,3.19]
[1763813565938,3.34502264,125.73,125.64,3.19]
[1763813566144,3.27,125.72,125.65,3.19]
[1763813566344,3.27,125.72,125.67,3.19]
[1763813566839,3.32353632,125.71,125.68,0.05670293]
[1763813569046,3.27,125.7,125.68,0.05670293]
[1763813570440,3.32353632,125.71,125.68,3.24670293]
[1763813573851,10.48833632,125.71,125.68,0.05670293]
[1763813574048,3.27,125.7,125.68,0.05670293]
[1763813586559,3.31353632,125.71,125.68,3.15670293]
[1763813586859,0.05353632,125.71,125.68,3.15670293]
[1763813587165,0.05353632,125.71,125.68,10.32290293]
[1763813587357,0.05353632,125.71,125.69,3.1]
[1763813587866,0.05353632,125.71,125.69,10.2654]
[1763813588072,0.05353632,125.71,125.7,3.1]
[1763813589970,3.26,125.8,125.72,3.1]
[1763813590174,3.26,125.8,125.74,3.1]
[1763813590471,3.26,125.75,125.68,3.1]
[1763813591076,3.32077022,125.73,125.7,3.15246993]
[1763813591972,3.32077022,125.73,125.7,0.05246993]
[1763813592570,3.26,125.72,125.7,0.05246993]
[1763813594272,0.06077022,125.73,125.7,3.15246993]
[1763813595272,0.06077022,125.73,125.72,3.1]
[1763813596064,0.06077022,125.73,125.7,3.15246993]
[1763813598066,0.06077022,125.73,125.7,10.31746993]
[1763813599075,0.06077022,125.73,125.71,3.1]
[1763813599277,3.26,125.81,125.74,3.1]
[1763813599474,3.26,125.81,125.76,3.1]
[1763813600177,3.26,125.79,125.76,3.1]
[1763813600476,3.26,125.77,125.71,16.72]
[1763813600681,3.26,125.75,125.71,26.9845]
[1763813601471,0.05590885,125.74,125.72,0.05057466]
[1763813601877,0.05590885,125.74,125.72,3.15057466]
[1763813602077,0.05590885,125.74,125.73,3.1]
[1763813605171,3.26,125.78,125.75,10.2623]
[1763813605375,3.26,125.81,125.76,3.1]
[1763813605685,3.26,125.81,125.77,10.2612]
[1763813605980,3.26,125.81,125.74,3.1]
[1763813606278,3.26,125.78,125.76,0.05364229]
[1763813607685,3.26,125.77,125.76,0.05364229]
[1763813613486,3.26,125.76,125.71,3.1]
[1763813613791,3.26,125.73,125.69,3.1]
[1763813614689,0.05258191,125.72,125.7,3.15156749]
[1763813619885,3.17258191,125.72,125.7,0.05156749]
[1763813620596,3.17258191,125.72,125.66,3.0]
[1763813620597,3.12,125.71,125.66,3.0]
[1763813621491,3.12,125.71,125.67,0.06104402]
[1763813621693,3.12,125.71,125.67,3.06104402]
[1763813623689,3.12,125.7,125.67,0.06104402]
[1763813624395,3.12,125.68,125.67,0.06104402]
[1763813624786,3.12,125.66,125.63,3.0]
[1763813625191,3.12,125.66,125.62,3.0]
[1763813625698,0.05015116,125.65,125.62,3.0]
[1763813626000,0.05015116,125.65,125.63,0.05316491]
[1763813626397,3.17015116,125.65,125.63,0.05316491]
[1763813631897,3.17015116,125.65,125.63,3.05316491]
[1763813632297,0.05015116,125.65,125.63,12.36334931]
[1763813632503,3.12,125.7,125.64,3.0]
[1763813632706,2.1410844,125.73,125.66,3.0]
[1763813633002,3.12,125.72,125.67,3.0]
[1763813633396,3.17969547,125.71,125.68,0.05127406]
[1763813636304,0.05969547,125.71,125.68,3.05127406]
[1763813637206,0.05969547,125.71,125.69,10.1657]
[1763813637403,3.17969547,125.71,125.68,3.05127406]
[1763813638108,3.17969547,125.71,125.68,10.21757406]
[1763813638409,3.17969547,125.71,125.69,3.0]
[1763813638903,0.05969547,125.71,125.69,7.1654]
[1763813639109,0.05969547,125.71,125.7,3.0]
[1763813640108,3.17969547,125.71,125.68,0.05127406]
[1763813644912,3.12,125.7,125.68,0.05127406]
[1763813646012,10.2853,125.7,125.68,0.05127406]
[1763813646314,3.23,125.69,125.68,0.05127406]
[1763813649517,3.23,125.68,125.62,2.99]
[1763813649816,3.23,125.66,125.62,2.99]
[1763813650116,3.23,125.66,125.61,16.7]
[1763813650316,3.23,125.64,125.61,16.7]
[1763813650506,3.23,125.64,125.62,0.05955731]
[1763813658525,3.23,125.64,125.62,3.04955731]
[1763813658831,3.2853076,125.65,125.62,3.04955731]
[1763813662230,0.0553076,125.65,125.63,2.99]
[1763813663138,3.2853076,125.65,125.63,2.99]
[1763813665637,0.0553076,125.65,125.63,2.99]
[1763813665843,3.2853076,125.65,125.63,2.99]
[1763813668642,3.2853076,125.65,125.62,10.21925731]
[1763813668832,0.0553076,125.65,125.63,2.99]
[1763813670331,3.2853076,125.65,125.63,2.99]
[1763813672550,3.2853076,125.65,125.62,0.05955731]
[1763813673039,5.426392,125.65,125.62,0.05955731]
[1763813673442,3.23,125.64,125.62,0.05955731]
[1763813674145,3.23,125.63,125.62,0.05955731]
[1763813675142,7.1687,125.64,125.62,3.04955731]
[1763813675348,0.0553076,125.65,125.62,3.04955731]
[1763813675647,3.1453076,125.65,125.62,3.04955731]
[1763813676239,3.1453076,125.65,125.63,3.09]
[1763813676441,0.0553076,125.65,125.63,3.09]
[1763813676836,0.0553076,125.65,125.64,19.96]
[1763813677139,3.09,125.71,125.65,3.26]
[1763813677336,3.09,125.69,125.65,3.26]
[1763813678048,3.14325943,125.68,125.66,0.05422038]
[1763813678649,5.28434383,125.68,125.66,0.05422038]
[1763813678851,3.09,125.67,125.66,0.05422038]
[1763813680851,0.05325943,125.68,125.66,3.31422038]
[1763813681047,3.14325943,125.68,125.66,3.31422038]
[1763813681251,0.05325943,125.68,125.66,3.31422038]
[1763813682343,3.14325943,125.68,125.66,3.31422038]
[1763813683656,3.14325943,125.68,125.66,0.05422038]
[1763813684946,0.05325943,125.68,125.66,3.31422038]
[1763813685455,0.05325943,125.68,125.66,27.18142038]
[1763813685652,0.05325943,125.68,125.67,3.26]
[1763813688160,10.2539,125.73,125.69,3.26]
[1763813688751,3.09,125.72,125.7,3.26]
[1763813689156,3.14348911,125.72,125.7,3.31828356]
[1763813689357,0.05348911,125.72,125.7,27.18338356]
[1763813689558,0.05348911,125.72,125.71,3.26]
[1763813699972,10.2517,125.77,125.73,3.26]
[1763813700478,3.09,125.76,125.73,3.26]
[1763813700768,3.09,125.81,125.75,3.26]
[1763813700973,0.05738302,125.79,125.77,0.0542531]
[1763813701174,3.09,125.84,125.8,3.26]
[1763813701373,3.09,125.83,125.77,3.26]
[1763813701568,3.09,125.8,125.78,16.7]
[1763813701766,3.09,125.79,125.74,19.96]
[1763813701966,3.09,125.79,125.75,3.26]
[1763813702273,0.06046046,125.78,125.76,3.31484927]
[1763813703175,3.15046046,125.78,125.76,0.05484927]
[1763813705071,0.06046046,125.78,125.76,3.31484927]
[1763813705577,0.06046046,125.78,125.77,3.26]
[1763813705777,6.65269047,125.84,125.77,3.26]
[1763813705974,10.4653,125.88,125.81,3.01]
[1763813706179,10.4653,125.88,125.83,3.01]
[1763813706375,111.2727,125.92,125.83,3.01]
[1763813706582,3.31,125.91,125.83,3.01]
[1763813706779,3.31,125.91,125.85,3.01]
[1763813706977,3.31,125.87,125.86,0.05513051]
[1763813707781,3.36274463,125.88,125.86,0.05513051]
[1763813708686,0.05274463,125.88,125.86,3.06513051]
[1763813709074,0.05274463,125.88,125.87,16.72]
[1763813709877,3.36274463,125.88,125.86,0.05513051]
[1763813710272,0.05274463,125.88,125.86,0.05513051]
[1763813710472,0.05274463,125.88,125.86,3.06513051]
[1763813712384,0.05274463,125.88,125.87,19.73]
[1763813713184,0.05274463,125.88,125.87,16.72]
[1763813713486,0.05274463,125.88,125.87,19.73]
[1763813715684,3.36274463,125.88,125.86,0.05513051]
[1763813715891,3.36274463,125.88,125.82,16.72]
[1763813716092,3.31,125.87,125.82,16.72]
[1763813716389,3.31,125.87,125.82,19.73]
[1763813716891,3.31,125.87,125.83,3.06054757]
[1763813717081,0.05274463,125.88,125.83,3.06054757]
[1763813717276,3.36274463,125.88,125.83,3.06054757]
[1763813717481,0.05274463,125.88,125.83,3.06054757]
[1763813717779,0.05274463,125.88,125.83,114.40154757]
[1763813717979,3.36274463,125.88,125.84,3.01]
[1763813718183,3.36274463,125.88,125.84,19.73]
[1763813718378,3.36274463,125.88,125.84,16.72]
[1763813719582,3.36274463,125.88,125.84,19.73]
[1763813720584,3.36274463,125.88,125.83,0.05054757]
[1763813721091,3.36274463,125.88,125.83,3.06054757]
[1763813721292,3.31,125.87,125.83,3.06054757]
[1763813722088,0.05274463,125.88,125.83,3.06054757]
[1763813722481,3.36274463,125.88,125.83,3.06054757]
[1763813722682,3.36274463,125.88,125.84,10.1671]
[1763813722995,3.36274463,125.88,125.85,3.01]
[1763813722996,0.05274463,125.88,125.85,3.01]
[1763813724082,0.05274463,125.88,125.85,10.1664]
[1763813724285,0.05274463,125.88,125.86,3.01]
[1763813724487,0.05274463,125.88,125.86,3.06686122]
[1763813724683,0.05274463,125.88,125.87,3.01]
[1763813726587,3.31,125.91,125.87,3.01]
[1763813727484,0.06052176,125.9,125.87,3.01]
[1763813729098,0.06052176,125.9,125.87,10.1654]
[1763813729289,3.37052176,125.9,125.87,3.01]
[1763813732994,3.31,125.89,125.86,0.05686122]
[1763813733599,3.31,125.87,125.86,0.05686122]
[1763813734093,10.4665,125.86,125.8,3.01]
[1763813734296,3.31,125.85,125.82,3.01]
[1763813734598,3.31,125.83,125.79,3.01]
[1763813734784,3.31,125.84,125.79,3.01]
[1763813735287,0.06067996,125.83,125.8,3.06387865]
[1763813735688,0.06067996,125.83,125.82,3.28]
[1763813735890,2.99,125.9,125.84,3.28]
[1763813736193,2.99,125.9,125.85,20.0]
[1763813736393,2.99,125.89,125.85,20.0]
[1763813736798,0.05498925,125.88,125.86,3.09610814]
[1763813737300,0.05498925,125.88,125.86,0.05610814]